fUST/lending_fUST_20260123
["ID","MTS","AMOUNT","RATE_DAILY","PERIOD"]
[403087400,1769144465232,-287.90075119,0.00013698,2]
[403087401,1769144469679,-212.09924881,0.00013698,2]
[403087402,1769144469706,-39.65190598,0.00013698,2]
[403087403,1769144472910,500.0,0.00013273,2]
[403087404,1769144472955,-187.97222137,0.00013698,2]
[403087405,1769144475185,1866.82432115,0.00013698,2]
[403087406,1769144475442,-272.37587265,0.00013698,2]
[403087407,1769144475466,-17.95378684,0.00013698,2]
[403087408,1769144477263,-482.04621316,0.00013698,2]
[403087409,1769144477295,-500.0,0.00013698,2]
[403087410,1769144477325,-500.0,0.00013698,2]
[403087411,1769144477355,-500.0,0.00013698,2]
[403087412,1769144477386,-500.0,0.00013698,2]
[403087413,1769144477417,-500.0,0.00013698,2]
[403087414,1769144477448,-500.0,0.00013698,2]
[403087415,1769144477480,-500.0,0.00013698,2]
[403087416,1769144477515,-500.0,0.00013698,2]
[403087417,1769144477546,-500.0,0.00013698,2]
[403087418,1769144477828,-315.16326416,0.00013698,2]
[403087419,1769144481263,-500.0,0.00013273,2]
[403087420,1769144481294,-184.83673584,0.00013698,2]
[403087421,1769144481324,-500.0,0.00013698,2]
[403087422,1769144481355,-500.0,0.00013698,2]
[403087423,1769144481386,-500.0,0.00013698,2]
[403087424,1769144481415,-500.0,0.00013698,2]
[403087425,1769144481445,-500.0,0.00013698,2]
[403087426,1769144481475,-500.0,0.00013698,2]
[403087427,1769144481505,-500.0,0.00013698,2]
[403087428,1769144481537,-500.0,0.00013698,2]
[403087429,1769144481567,-130.33652832,0.00013698,2]
[403087430,1769144482107,-158.1019371,0.00013698,2]
[403087431,1769144484286,-1258.00361217,0.00013561,2]
[403087432,1769144485446,-211.56153458,0.00013698,2]
[403087433,1769144485469,-52.83156829,0.00013698,2]
[403087434,1769144489038,-211.05711729,0.00013698,2]
[403087435,1769144491010,-240.83795846,0.00013698,2]
[403087436,1769144494491,-127.25172201,0.00013698,2]
[403087437,1769144494514,-41.59827799,0.00013698,2]
[403087438,1769144496584,-349.87631776,0.00013698,2]
[403087440,1769144497953,1295.78305843,0.00013698,2]
[403087441,1769144498038,-108.52540425,0.00013698,2]
[403087442,1769144498062,-61.2396032,0.00013698,2]
[403087444,1769144501288,-202.27090659,0.00013698,2]
[403087445,1769144503041,-236.48949021,0.00013698,2]
[403087446,1769144503072,-500.0,0.00013698,2]
[403087447,1769144503104,-392.46850976,0.00013698,2]
[403087448,1769144503137,-1219.03071803,0.00013698,2]
[403087449,1769144505796,5000.0,0.00013699,2]
[403087450,1769144514612,304.032564,0.00013698,2]
[403087451,1769144516517,-195.967436,0.00013698,2]
[403087452,1769144516548,-500.0,0.00013698,2]
[403087453,1769144516579,-500.0,0.00013698,2]
[403087454,1769144516611,-500.0,0.00013698,2]
[403087455,1769144516642,-500.0,0.00013698,2]
[403087456,1769144516672,-500.0,0.00013698,2]
[403087457,1769144516703,-500.0,0.00013698,2]
[403087458,1769144516733,-500.0,0.00013698,2]
[403087459,1769144516777,-500.0,0.00013698,2]
[403087460,1769144516809,-500.0,0.00013698,2]
[403087461,1769144516842,-108.075128,0.00013698,2]
[403087462,1769144517479,-184.39923863,0.00013698,2]
[403087463,1769144519958,-207.52563337,0.00013698,2]
[403087464,1769144519993,-500.0,0.00013698,2]
[403087465,1769144520027,-500.0,0.00013698,2]
[403087466,1769144520062,-500.0,0.00013698,2]
[403087467,1769144520097,-500.0,0.00013698,2]
[403087468,1769144520133,-500.0,0.00013698,2]
[403087469,1769144520166,-500.0,0.00013698,2]
[403087470,1769144520199,-500.0,0.00013698,2]
[403087471,1769144520232,-500.0,0.00013698,2]
[403087472,1769144520265,-500.0,0.00013698,2]
[403087473,1769144520298,-84.95873326,0.00013698,2]
[403087474,1769144520483,-415.04126674,0.00013698,2]
[403087475,1769144520516,-500.0,0.00013698,2]
[403087476,1769144520553,-500.0,0.00013698,2]
[403087477,1769144520587,-500.0,0.00013698,2]
[403087478,1769144520618,-500.0,0.00013698,2]
[403087479,1769144520650,-525.20687177,0.00013698,2]
[403087480,1769144520682,-500.0,0.00013698,2]
[403087481,1769144520718,-500.0,0.00013698,2]
[403087482,1769144520750,-500.0,0.00013698,2]
[403087483,1769144520781,-500.0,0.00013698,2]
[403087484,1769144523183,-300.0,0.00013697,2]
[403087485,1769144523218,-500.0,0.00013698,2]
[403087486,1769144523251,-500.0,0.00013698,2]
[403087487,1769144523284,-500.0,0.00013698,2]
[403087488,1769144523320,-500.0,0.00013698,2]
[403087489,1769144523354,-500.0,0.00013698,2]
[403087490,1769144523386,-500.0,0.00013698,2]
[403087491,1769144523420,-500.0,0.00013698,2]
[403087492,1769144523454,-500.0,0.00013698,2]
[403087493,1769144523487,-500.0,0.00013698,2]
[403087494,1769144535611,-5000.0,0.0001314,2]
[403087495,1769144535795,-500.0,0.00013273,2]
[403087496,1769144535826,-500.0,0.00013273,2]
[403087497,1769144535855,-500.0,0.00013273,2]
[403087498,1769144535884,-500.0,0.00013273,2]
[403087499,1769144535914,-500.0,0.00013273,2]
[403087500,1769144535946,-500.0,0.00013698,2]
[403087501,1769144535978,-500.0,0.00013698,2]
[403087502,1769144536010,-500.0,0.00013698,2]
[403087503,1769144536044,-500.0,0.00013698,2]
[403087504,1769144536076,-500.0,0.00013698,2]
[403087505,1769144536215,-500.0,0.00013698,2]
[403087506,1769144536247,-500.0,0.00013698,2]
[403087507,1769144536278,-500.0,0.00013698,2]
[403087508,1769144536311,-500.0,0.00013698,2]
[403087509,1769144536340,-500.0,0.00013698,2]
[403087510,1769144536372,-500.0,0.00013698,2]
[403087511,1769144536402,-647.43250881,0.00013698,2]
[403087512,1769144536432,-647.43250881,0.00013698,2]
[403087513,1769144536463,-647.43250881,0.00013698,2]
[403087514,1769144536574,-647.43250881,0.00013698,2]
[403087515,1769144536605,-647.43250881,0.00013698,2]
[403087516,1769144536634,-647.43250881,0.00013698,2]
[403087517,1769144536666,-647.43250881,0.00013698,2]
[403087518,1769144536697,-647.43250881,0.00013698,2]
[403087519,1769144536727,-647.43250881,0.00013698,2]
[403087520,1769144536758,-647.43250881,0.00013698,2]
[403087521,1769144536789,-288.52236785,0.00013698,2]
[403087522,1769144537999,-207.50424573,0.00013009,2]
[403087523,1769144542396,-175.48463812,0.00013009,2]
[403087524,1769144544033,-188.14685305,0.00013009,2]
[403087525,1769144544789,-363.65181712,0.00013009,2]
[403087526,1769144544823,-358.91014096,0.00013698,2]
[403087527,1769144544856,-647.43250881,0.00013698,2]
[403087528,1769144544888,-647.43250881,0.00013698,2]
[403087529,1769144544921,-647.43250881,0.00013698,2]
[403087530,1769144544955,-647.43250881,0.00013698,2]
[403087531,1769144545004,-647.43250881,0.00013698,2]
[403087532,1769144545041,-647.43250881,0.00013698,2]
[403087533,1769144545076,-138.26346931,0.00013698,2]
[403087534,1769144545194,-509.1690395,0.00013698,2]
[403087535,1769144545228,-647.43250881,0.00013698,2]
[403087536,1769144545260,-647.43250881,0.00013698,2]
[403087537,1769144545293,-647.43250881,0.00013698,2]
[403087538,1769144545325,-647.43250881,0.00013698,2]
[403087539,1769144545357,-647.43250881,0.00013698,2]
[403087540,1769144545390,-647.43250881,0.00013698,2]
[403087541,1769144545424,-565.04930647,0.00013698,2]
[403087542,1769144545519,-82.38320234,0.00013698,2]
[403087543,1769144545551,-647.43250881,0.00013698,2]
[403087544,1769144545589,-647.43250881,0.00013698,2]
[403087545,1769144545624,-647.43250881,0.00013698,2]
[403087546,1769144545655,-647.43250881,0.00013698,2]
[403087547,1769144545687,-647.43250881,0.00013698,2]
[403087548,1769144545719,-647.43250881,0.00013698,2]
[403087549,1769144545752,-647.43250881,0.00013698,2]
[403087550,1769144545786,-123.75596317,0.00013698,2]
[403087551,1769144546305,-304.23947979,0.00013698,2]
[403087552,1769144563469,-4424.01,0.00013425,2]
[403087553,1769144563594,-5000.0,0.00013561,2]
[403087554,1769144563698,-219.43706585,0.00013698,2]
[403087555,1769144563726,-647.43250881,0.00013698,2]
[403087556,1769144563756,-647.43250881,0.00013698,2]
[403087557,1769144563785,-647.43250881,0.00013698,2]
[403087558,1769144563815,-647.43250881,0.00013698,2]
[403087559,1769144563843,-647.43250881,0.00013698,2]
[403087560,1769144563871,-647.43250881,0.00013698,2]
[403087561,1769144564130,500.0,0.00013698,2]
[403087562,1769144568608,500.0,0.00013698,2]
[403087563,1769144568646,500.0,0.00013698,2]
[403087564,1769144568674,291.94576258,0.00013698,2]
[403087565,1769144572920,-208.05423742,0.00013698,2]
[403087566,1769144572954,-500.0,0.00013698,2]
[403087567,1769144572984,-500.0,0.00013698,2]
[403087568,1769144573014,-206.77225228,0.00013698,2]
[403087569,1769144574996,500.0,0.00013698,2]
[403087570,1769144575035,500.0,0.00013698,2]
[403087571,1769144575072,500.0,0.00013698,2]
[403087572,1769144575105,500.0,0.00013698,2]
[403087573,1769144575134,500.0,0.00013698,2]
[403087574,1769144575162,500.0,0.00013698,2]
[403087575,1769144575190,500.0,0.00013698,2]
[403087576,1769144575220,500.0,0.00013698,2]
[403087577,1769144575248,500.0,0.00013698,2]
[403087578,1769144575277,219.94032534,0.00013698,2]
[403087579,1769144575313,500.0,0.00013698,2]
[403087580,1769144575341,500.0,0.00013698,2]
[403087581,1769144576916,1450.41669526,0.00013561,2]
[403087582,1769144576941,3549.58330474,0.00013561,2]
[403087583,1769144578452,259.51,8.372e-05,2]
[403087584,1769144578882,389.27,9.07e-05,2]
[403087585,1769144579061,519.03,9.768e-05,2]
[403087586,1769144579473,648.79,0.00010465,2]
[403087587,1769144579875,778.54,0.00011163,2]
[403087588,1769144580435,908.3,0.00011861,2]
[403087589,1769144580829,1038.06,0.00012558,2]
[403087590,1769144581237,1167.81,0.00013256,2]
[403087591,1769144582358,300.0,0.00013698,2]
[403087592,1769144582803,300.0,0.00013698,2]
[403087593,1769144584452,141.11669526,0.00013273,2]
[403087594,1769144584477,358.88330474,0.00013273,2]
[403087595,1769144584510,501.32474491,0.00013273,2]
[403087596,1769144584688,5000.0,0.00013699,2]
[403087597,1769144586744,394.90243871,0.00013698,2]
[403087598,1769144586783,903.70787689,0.00013698,2]
[403087599,1769144587907,903.70787689,0.00013698,2]
[403087600,1769144587966,217.47815878,0.00013273,2]
[403087601,1769144588228,903.70787689,0.00013698,2]
[403087602,1769144588427,500.0,0.00013273,2]
[403087603,1769144589184,316.29772219,0.00013273,2]
[403087604,1769144589207,183.70227781,0.00013273,2]
[403087605,1769144589250,500.0,0.00013273,2]
[403087606,1769144589288,903.70787689,0.00013698,2]
[403087607,1769144593855,500.30770735,0.00013273,2]
[403087608,1769144594270,501.65808603,0.00013273,2]
[403087609,1769144594302,500.4421088,0.00013273,2]
[403087610,1769144595762,501.54783597,0.00013273,2]
[403087611,1769144596914,500.0,0.00013273,2]
[403087612,1769144597676,402.96126214,0.00013273,2]
[403087613,1769144599087,500.0,0.00013273,2]
[403087614,1769144599843,648.71726301,0.00013273,2]
[403087615,1769144599961,4356.965582,0.00013699,2]
[403087616,1769144602160,-500.0,0.00013273,2]
[403087617,1769144602189,-500.0,0.00013273,2]
[403087618,1769144602219,-643.034418,0.00013699,2]
[403087619,1769144602581,500.0,0.00013273,2]
[403087620,1769144603209,500.0,0.00013273,2]
[403087621,1769144603491,500.0,0.00013273,2]
[403087622,1769144604412,500.0,0.00013273,2]
[403087623,1769144605068,500.0,0.00013273,2]
[403087624,1769144608534,500.0,0.00013698,2]
[403087625,1769144608564,367.91205448,0.00013698,2]
[403087626,1769144608593,500.0,0.00013698,2]
[403087627,1769144608728,432.75335131,0.00013698,2]
[403087628,1769144608851,2413.27575821,0.00013699,2]
[403087629,1769144619475,540.24707588,0.00011681,2]
[403087630,1769144624333,5000.0,0.00013689,2]
[403087631,1769144643088,-155.48240284,0.00013698,2]
[403087632,1769144645398,-242.17606554,0.00013698,2]
[403087633,1769144646066,500.0,0.00013273,2]
[403087634,1769144646100,500.0,0.00013273,2]
[403087635,1769144646785,3447.21409606,0.00013698,2]
[403087636,1769144647403,-102.34153162,0.00013698,2]
[403087637,1769144647425,-53.2600881,0.00013698,2]
[403087638,1769144648012,-446.7399119,0.00013698,2]
[403087639,1769144648047,-500.0,0.00013698,2]
[403087640,1769144648085,-500.0,0.00013698,2]
[403087641,1769144648116,-300.0,0.00013698,2]
[403087642,1769144648150,-2586.72424179,0.00013699,2]
[403087643,1769144648212,500.0,0.00013273,2]
[403087644,1769144649402,500.0,0.00013273,2]
[403087645,1769144649848,333.08169262,0.00013273,2]
[403087646,1769144649871,166.91830738,0.00013273,2]
[403087647,1769144652260,500.0,0.00013273,2]
[403087648,1769144654206,352.13,7.665e-05,2]
[403087649,1769144654539,4963.53784027,0.00013699,2]
[403087650,1769144654600,704.27,8.362e-05,2]
[403087651,1769144655000,1056.4,9.059e-05,2]
[403087652,1769144655397,1408.53,9.756e-05,2]
[403087653,1769144655812,848.22385235,0.00010452,2]
[403087654,1769144659237,-275.16290434,0.00010452,2]
[403087655,1769144660187,-637.27324331,0.00010452,2]
[403087656,1769144660218,-2112.8,0.00011149,2]
[403087657,1769144660249,-2034.93351338,0.00011846,2]
[403087658,1769144662222,-160.02,0.00011846,2]
[403087659,1769144663516,-211.25,0.00011846,2]
[403087660,1769144665155,-58.72648662,0.00011846,2]
[403087661,1769144665179,-96.73250665,0.00012543,2]
[403087662,1769144669287,-269.52845484,0.00012543,2]
[403087663,1769144671534,-152.6178216,0.00012418,2]
[403087664,1769144675648,-4847.3821784,0.00012418,2]
[403087666,1769144679822,-238.56,0.00012543,2]
[403087667,1769144685084,-2212.23903851,0.00012543,2]
[403087668,1769144685116,-155.0,0.00013191,2]
[403087669,1769144685146,-2096.34192298,0.0001324,2]
[403087670,1769144691224,-1072.84807702,0.0001324,2]
[403087671,1769144691253,-502.04598716,0.00013273,2]
[403087672,1769144692359,520.68090648,0.00013698,2]
[403087673,1769144700589,635.54892504,0.00013698,2]
[403087674,1769144700619,302.96395474,0.00013698,2]
[403087675,1769144700648,300.75247248,0.00013698,2]
[403087676,1769144700678,500.0,0.00013698,2]
[403087677,1769144700709,500.0,0.00013698,2]
[403087678,1769144700738,500.0,0.00013698,2]
[403087679,1769144700767,500.0,0.00013698,2]
[403087680,1769144700799,500.0,0.00013698,2]
[403087681,1769144700828,500.0,0.00013698,2]
[403087682,1769144700856,500.0,0.00013698,2]
[403087683,1769144700885,500.0,0.00013698,2]
[403087684,1769144700916,500.0,0.00013698,2]
[403087685,1769144700947,500.0,0.00013698,2]
[403087686,1769144700988,90.2756129,0.00013698,2]
[403087687,1769144703620,-269.25042385,0.00013245,2]
[403087688,1769144703705,-407.76169555,0.00013245,2]
[403087689,1769144705678,-500.0,0.00013273,2]
[403087690,1769144708583,-307.1325459,0.00013273,2]
[403087691,1769144712381,-192.8674541,0.00013273,2]
[403087692,1769144712402,-220.70488236,0.00013273,2]
[403087693,1769144715609,-166.18740678,0.00013273,2]
[403087694,1769144717583,-113.10771086,0.00013273,2]
[403087695,1769144717604,-107.80507894,0.00013273,2]
[403087696,1769144719681,-392.19492106,0.00013273,2]
[403087697,1769144719712,-500.0,0.00013273,2]
[403087698,1769144719742,-501.71827501,0.00013273,2]
[403087699,1769144719771,-238.65486629,0.00013273,2]
[403087700,1769144719801,-500.0,0.00013273,2]
[403087701,1769144719832,-306.07235732,0.00013273,2]
[403087702,1769144719863,-300.37230855,0.00013273,2]
[403087703,1769144720091,500.9366246,0.00013273,2]
[403087704,1769144720459,500.0,0.00013273,2]
[403087705,1769144721067,500.0,0.00013273,2]
[403087706,1769144731142,250.73,7.712e-05,2]
[403087707,1769144731530,501.46,8.414e-05,2]
[403087708,1769144731928,752.19,9.115e-05,2]
[403087709,1769144732345,1002.93,9.816e-05,2]
[403087710,1769144732746,513.73791894,0.00010517,2]
[403087711,1769144732772,739.92208106,0.00010517,2]
[403087712,1769144733661,1504.39,0.00011218,2]
[403087713,1769144734086,1755.12,0.00011919,2]
[403087714,1769144734505,2005.85,0.0001262,2]
[403087715,1769144734910,2256.58,0.00013322,2]
[403087717,1769144763751,500.0,0.00013273,2]
[403087718,1769144764029,500.0,0.00013273,2]
[403087719,1769144765307,-300.0,0.00013673,2]
[403087720,1769144766753,500.0,0.00013273,2]
[403087721,1769144766828,500.0,0.00013273,2]
[403087722,1769144766856,500.0,0.00013273,2]
[403087723,1769144767190,500.0,0.00013273,2]
[403087724,1769144770616,500.0,0.00013273,2]
[403087725,1769144770781,500.0,0.00013273,2]
[403087726,1769144772882,500.0,0.00013273,2]
[403087728,1769144782336,-1200.0,0.00013697,2]
[403087729,1769144799730,-300.0,0.00013698,2]
[403087730,1769144799759,-300.0,0.00013698,2]
[403087731,1769144809596,165.52,7.746e-05,2]
[403087732,1769144810234,331.04,8.451e-05,2]
[403087733,1769144810412,496.55,9.155e-05,2]
[403087734,1769144810849,662.07,9.859e-05,2]
[403087735,1769144811252,827.59,0.00010563,2]
[403087736,1769144811650,993.11,0.00011268,2]
[403087737,1769144812083,1158.63,0.00011972,2]
[403087738,1769144812480,1324.15,0.00012676,2]
[403087739,1769144812895,1489.66,0.0001338,2]
[403087741,1769144822221,300.0,0.00013698,2]
[403087743,1769144824989,187.94229213,0.00013698,2]
[403087744,1769144826811,511.02412162,0.00013698,2]
[403087745,1769144826912,352.72358625,0.00013698,2]
[403087746,1769144826945,158.30053537,0.00013698,2]
[403087747,1769144826988,511.02412162,0.00013698,2]
[403087748,1769144827030,511.02412162,0.00013698,2]
[403087749,1769144827071,511.02412162,0.00013698,2]
[403087750,1769144827115,511.02412162,0.00013698,2]
[403087751,1769144827174,511.02412162,0.00013698,2]
[403087752,1769144827248,511.02412162,0.00013698,2]
[403087753,1769144827284,511.02412162,0.00013698,2]
[403087754,1769144827324,511.02412162,0.00013698,2]
[403087755,1769144827366,511.02412162,0.00013698,2]
[403087756,1769144827404,511.02412162,0.00013698,2]
[403087757,1769144827464,511.02412162,0.00013698,2]
[403087758,1769144827500,511.02412162,0.00013698,2]
[403087759,1769144827531,511.02412162,0.00013698,2]
[403087760,1769144827564,511.02412162,0.00013698,2]
[403087761,1769144827603,511.02412162,0.00013698,2]
[403087762,1769144827636,511.02412162,0.00013698,2]
[403087763,1769144827668,511.02412162,0.00013698,2]
[403087764,1769144827701,511.02412162,0.00013698,2]
[403087765,1769144827732,511.02412162,0.00013698,2]
[403087766,1769144827767,132.25115385,0.00013698,2]
[403087767,1769144827793,378.77296777,0.00013698,2]
[403087768,1769144827825,511.02412162,0.00013698,2]
[403087769,1769144827858,511.02412162,0.00013698,2]
[403087770,1769144827897,511.02412162,0.00013698,2]
[403087771,1769144827932,511.02412162,0.00013698,2]
[403087772,1769144827967,511.02412162,0.00013698,2]
[403087773,1769144828002,511.02412162,0.00013698,2]
[403087774,1769144828039,511.02412162,0.00013698,2]
[403087775,1769144828076,511.02412162,0.00013698,2]
[403087776,1769144828115,511.02412162,0.00013698,2]
[403087777,1769144828156,511.02412162,0.00013698,2]
[403087778,1769144828201,511.02412162,0.00013698,2]
[403087779,1769144828250,511.02412162,0.00013698,2]
[403087780,1769144828286,511.02412162,0.00013698,2]
[403087781,1769144828322,511.02412162,0.00013698,2]
[403087782,1769144828393,228.39014047,0.00013698,2]
[403087783,1769144828421,282.63398115,0.00013698,2]
[403087784,1769144828458,511.02412162,0.00013698,2]
[403087785,1769144828492,511.02412162,0.00013698,2]
[403087786,1769144828525,511.02412162,0.00013698,2]
[403087787,1769144828559,511.02412162,0.00013698,2]
[403087788,1769144828592,140.16886192,0.00013698,2]
[403087789,1769144828620,370.8552597,0.00013698,2]
[403087790,1769144828653,511.02412162,0.00013698,2]
[403087791,1769144828686,511.02412162,0.00013698,2]
[403087792,1769144828741,511.02412162,0.00013698,2]
[403087793,1769144828786,511.02412162,0.00013698,2]
[403087794,1769144828830,511.02412162,0.00013698,2]
[403087795,1769144828907,511.02412162,0.00013698,2]
[403087796,1769144828946,511.02412162,0.00013698,2]
[403087797,1769144828998,511.02412162,0.00013698,2]
[403087798,1769144829042,511.02412162,0.00013698,2]
[403087799,1769144829099,511.02412162,0.00013698,2]
[403087800,1769144829166,511.02412162,0.00013698,2]
[403087801,1769144829203,511.02412162,0.00013698,2]
[403087802,1769144829249,511.02412162,0.00013698,2]
[403087803,1769144829300,511.02412162,0.00013698,2]
[403087804,1769144829344,511.02412162,0.00013698,2]
[403087805,1769144829382,511.02412162,0.00013698,2]
[403087806,1769144829420,511.02412162,0.00013698,2]
[403087807,1769144829504,511.02412162,0.00013698,2]
[403087808,1769144829539,430.72055114,0.00013698,2]
[403087809,1769144829567,80.30357048,0.00013698,2]
[403087810,1769144829602,511.02412162,0.00013698,2]
[403087811,1769144829636,511.02412162,0.00013698,2]
[403087812,1769144829672,511.02412162,0.00013698,2]
[403087813,1769144829705,511.02412162,0.00013698,2]
[403087814,1769144829739,511.02412162,0.00013698,2]
[403087815,1769144830334,2415.92,0.00013698,2]
[403087816,1769144831059,171.93433816,0.00013273,2]
[403087817,1769144835361,544.48459412,0.00013273,2]
[403087818,1769144839635,500.15361623,0.00013273,2]
[403087819,1769144840843,584.66832671,0.00013273,2]
[403087820,1769144841386,201.81951638,0.00013273,2]
[403087821,1769144841692,500.0,0.00013273,2]
[403087822,1769144841754,500.0,0.00013273,2]
[403087823,1769144842213,500.0,0.00013273,2]
[403087824,1769144845182,1617.53976798,0.00013698,2]
[403087825,1769144845210,3382.46023202,0.00013698,2]
[403087826,1769144853240,5000.0,0.00013698,2]
[403087827,1769144856893,500.0,0.00013698,2]
[403087828,1769144856924,500.0,0.00013698,2]
[403087829,1769144856955,500.0,0.00013698,2]
[403087830,1769144856984,117.54976798,0.00013698,2]
[403087831,1769144857009,382.45023202,0.00013698,2]
[403087832,1769144857044,500.0,0.00013698,2]
[403087833,1769144857074,500.0,0.00013698,2]
[403087834,1769144857110,500.0,0.00013698,2]
[403087835,1769144857143,500.0,0.00013698,2]
[403087836,1769144857206,500.0,0.00013698,2]
[403087837,1769144857237,500.0,0.00013698,2]
[403087838,1769144857275,500.0,0.00013698,2]
[403087839,1769144857304,500.0,0.00013698,2]
[403087840,1769144857337,500.0,0.00013698,2]
[403087841,1769144857376,500.0,0.00013698,2]
[403087842,1769144857436,500.0,0.00013698,2]
[403087843,1769144857465,500.0,0.00013698,2]
[403087844,1769144857697,500.0,0.00013698,2]
[403087845,1769144857728,500.0,0.00013698,2]
[403087846,1769144857758,500.0,0.00013698,2]
[403087847,1769144857788,500.0,0.00013698,2]
[403087848,1769144857816,500.0,0.00013698,2]
[403087849,1769144857847,500.0,0.00013698,2]
[403087850,1769144857877,457.9644457,0.00013698,2]
[403087851,1769144857907,159.59532228,0.00013698,2]
[403087852,1769144857933,340.40467772,0.00013698,2]
[403087853,1769144868424,5000.0,0.00013698,2]
[403087854,1769144876723,4294.70858989,0.00013698,2]
[403087855,1769144882543,300.0,0.00013698,2]
[403087856,1769144883067,562.48249853,0.00013273,2]
[403087857,1769144884143,168.88,3.996e-05,2]
[403087858,1769144884200,168.88,3.996e-05,2]
[403087859,1769144886055,179.31,7.765e-05,2]
[403087860,1769144886448,358.62,8.471e-05,2]
[403087861,1769144886851,537.93,9.177e-05,2]
[403087862,1769144887272,717.24,9.882e-05,2]
[403087863,1769144887874,896.55,0.00010588,2]
[403087864,1769144888277,1075.86,0.00011294,2]
[403087865,1769144888703,739.54891158,0.00012,2]
[403087866,1769144888728,515.62108842,0.00012,2]
[403087867,1769144889122,1434.48,0.00012706,2]
[403087868,1769144889562,1613.79,0.00013412,2]
[403087869,1769144890271,619.17894952,0.00013273,2]
[403087870,1769144890763,295.75719017,0.00013273,2]
[403087871,1769144891317,500.0,0.00013273,2]
[403087872,1769144891894,5000.0,0.00013698,2]
[403087873,1769144892464,21.18277189,0.00013273,2]
[403087874,1769144892487,478.81722811,0.00013273,2]
[403087875,1769144893419,500.0,0.00013698,2]
[403087876,1769144893468,500.0,0.00013698,2]
[403087877,1769144893731,392.20021824,0.00013698,2]
[403087878,1769144900243,5000.0,0.00013698,2]
[403087879,1769144915353,3128.99255365,0.00013698,2]
[403087880,1769144915378,1871.00744635,0.00013698,2]
[403087881,1769144919323,464.84693911,0.00012212,2]
[403087882,1769144923156,5000.0,0.00013698,2]
[403087883,1769144938455,2664.15561454,0.00013698,2]
[403087884,1769144938488,2335.84438546,0.00013698,2]
[403087885,1769144938893,7664.16561454,0.00013152,2]
[403087886,1769144938916,2335.83438546,0.00013152,2]
[403087887,1769144943242,300.0,0.00013698,2]
[403087889,1769144954195,4484.33,0.00013698,2]
[403087890,1769144960787,500.0,0.00013273,2]
[403087891,1769144961726,500.0,0.00013273,2]
[403087892,1769144961973,1879.84561454,0.00013698,2]
[403087893,1769144961997,3120.15438546,0.00013698,2]
[403087894,1769144962073,294.78,8.541e-05,2]
[403087895,1769144962481,442.16,9.253e-05,2]
[403087896,1769144962912,589.55,9.964e-05,2]
[403087897,1769144963316,736.94,0.00010676,2]
[403087898,1769144963734,884.33,0.00011388,2]
[403087899,1769144964154,1031.72,0.00012099,2]
[403087900,1769144964580,1179.11,0.00012811,2]
[403087901,1769144965000,1326.49,0.00013523,2]
[403087902,1769144984794,394.77561454,0.00013698,2]
[403087903,1769144984820,4605.22438546,0.00013698,2]
[403087904,1769145002470,300.0,0.00013698,2]
[403087906,1769145004306,500.0,0.00013273,2]
[403087907,1769145007217,4594.78561454,0.00013698,2]
[403087908,1769145007245,405.21438546,0.00013698,2]